fUST/lending_fUST_20250717
["ID","MTS","AMOUNT","RATE_DAILY","PERIOD"]
[372567796,1752685858616,-12605.49131908,0.00021116,2]
[372567797,1752685858627,-160.0,0.00021116,2]
[372567798,1752685858637,-214.40824756,0.00021116,2]
[372567799,1752685858648,-525.58295679,0.00021116,2]
[372567800,1752685858659,-215.5496034,0.00021116,2]
[372567801,1752685858670,-230.8109288,0.00021116,2]
[372567802,1752685858682,-160.0,0.00021116,2]
[372567803,1752685858692,-160.0,0.00021116,2]
[372567804,1752685858702,-2000.0,0.00021116,2]
[372567805,1752685858714,-1000.0,0.00021142,2]
[372567806,1752685858725,-460.0,0.00021144,2]
[372567807,1752685858737,-6095.35,0.00021148,2]
[372567808,1752685858747,-1000.0,0.00021206,2]
[372567809,1752685858757,-437.39951093,0.00021206,2]
[372567810,1752685858768,-615.02980264,0.00021206,2]
[372567811,1752685858780,-1000.0,0.00021206,2]
[372567812,1752685858791,-10000.0,0.00021241,2]
[372567813,1752685858802,-10000.0,0.00021282,2]
[372567814,1752685858812,-5916.31313928,0.00021314,5]
[372567815,1752685858823,-10000.0,0.00021321,2]
[372567816,1752685858833,-460.0,0.00021369,2]
[372567817,1752685858843,-460.0,0.00021369,2]
[372567818,1752685858853,-301.84,0.00021369,2]
[372567819,1752685858869,-460.0,0.00021369,2]
[372567820,1752685858880,-460.0,0.00021369,2]
[372567821,1752685858890,-460.0,0.00021369,2]
[372567822,1752685858901,-460.0,0.00021369,2]
[372567823,1752685858910,-460.0,0.00021369,2]
[372567824,1752685858920,-460.0,0.00021369,2]
[372567825,1752685858930,-460.0,0.00021369,2]
[372567826,1752685858941,-460.0,0.00021369,2]
[372567827,1752685858950,-460.0,0.00021369,2]
[372567828,1752685858959,-460.0,0.00021369,2]
[372567829,1752685858969,-460.0,0.00021369,2]
[372567830,1752685858979,-593.36,0.00021369,2]
[372567831,1752685858988,-460.0,0.00021369,2]
[372567832,1752685858998,-460.0,0.00021369,2]
[372567833,1752685859008,-460.0,0.00021369,2]
[372567834,1752685859017,-460.0,0.00021369,2]
[372567835,1752685859027,-460.0,0.00021369,2]
[372567836,1752685859036,-460.0,0.00021369,2]
[372567837,1752685859045,-460.0,0.00021369,2]
[372567838,1752685859055,-579.17,0.00021369,2]
[372567839,1752685859065,-460.0,0.00021369,2]
[372567840,1752685859075,-460.0,0.00021369,2]
[372567841,1752685859087,-460.0,0.00021369,2]
[372567842,1752685859096,-460.0,0.00021369,2]
[372567843,1752685859108,-657.27,0.00021369,2]
[372567844,1752685859118,-460.0,0.00021369,2]
[372567845,1752685859127,-460.0,0.00021369,2]
[372567846,1752685859136,-460.0,0.00021369,2]
[372567847,1752685859146,-460.0,0.00021369,2]
[372567848,1752685859155,-460.0,0.00021369,2]
[372567849,1752685859164,-224.15621771,0.00021369,2]
[372567850,1752685859173,-729.43,0.00021369,2]
[372567851,1752685859182,-460.0,0.00021369,2]
[372567852,1752685859191,-460.0,0.00021369,2]
[372567853,1752685859201,-547.12552507,0.00021369,2]
[372567854,1752685859210,-1666.88,0.00021369,2]
[372567855,1752685859220,-1697.15,0.00021369,2]
[372567856,1752685859230,-460.0,0.00021369,2]
[372567857,1752685859240,-1357.78,0.00021369,2]
[372567858,1752685859251,-460.0,0.00021369,2]
[372567859,1752685859260,-586.34,0.00021369,2]
[372567860,1752685859270,-755.09,0.00021369,2]
[372567861,1752685859279,-460.0,0.00021369,2]
[372567862,1752685859289,-760.93,0.00021369,2]
[372567863,1752685859298,-442.57506872,0.00021369,2]
[372567864,1752685859308,-460.0,0.00021369,2]
[372567865,1752685859317,-460.0,0.00021369,2]
[372567866,1752685859327,-587.6,0.00021369,2]
[372567867,1752685859336,-2012.57,0.00021369,2]
[372567868,1752685859346,-5099.27,0.00021369,2]
[372567869,1752685859356,-1833.17,0.00021369,2]
[372567870,1752685859367,-460.0,0.00021369,2]
[372567871,1752685859381,-460.0,0.00021369,2]
[372567872,1752685859393,-537.99,0.00021369,2]
[372567873,1752685859403,-593.0,0.00021369,2]
[372567874,1752685859412,-460.0,0.00021369,2]
[372567875,1752685859423,-460.0,0.00021369,2]
[372567876,1752685859432,-1535.14,0.00021369,2]
[372567877,1752685859441,-460.0,0.00021369,2]
[372567878,1752685859454,-1021.02,0.00021369,2]
[372567879,1752685859464,-460.0,0.00021369,2]
[372567880,1752685859474,-460.0,0.00021369,2]
[372567881,1752685859485,-914.77,0.00021369,2]
[372567882,1752685859496,-460.0,0.00021369,2]
[372567883,1752685859506,-460.0,0.00021369,2]
[372567884,1752685859515,-5881.17,0.00021369,2]
[372567885,1752685859524,-460.0,0.00021369,2]
[372567886,1752685859534,-402.15681976,0.00021369,2]
[372567887,1752685859544,-460.0,0.00021369,2]
[372567888,1752685859555,-460.0,0.00021369,2]
[372567889,1752685859565,-1200.41,0.00021369,2]
[372567890,1752685859575,-400.00000033,0.00021369,2]
[372567891,1752685859584,-4675.14,0.00021369,2]
[372567892,1752685859595,-460.0,0.00021369,2]
[372567893,1752685859604,-460.0,0.00021369,2]
[372567894,1752685859615,-1850.24,0.00021369,2]
[372567895,1752685859624,-922.03,0.00021369,2]
[372567896,1752685859634,-460.0,0.00021369,2]
[372567897,1752685859643,-2753.5,0.00021369,2]
[372567898,1752685859652,-881.48,0.00021369,2]
[372567899,1752685859662,-694.7,0.00021369,2]
[372567900,1752685859671,-460.0,0.00021369,2]
[372567901,1752685859680,-530.9,0.00021369,2]
[372567902,1752685859690,-311.97,0.00021369,2]
[372567903,1752685859699,-460.0,0.00021369,2]
[372567904,1752685859709,-460.0,0.00021369,2]
[372567905,1752685859718,-460.0,0.00021369,2]
[372567906,1752685859727,-613.81,0.00021369,2]
[372567907,1752685859736,-641.21,0.00021369,2]
[372567908,1752685859745,-460.0,0.00021369,2]
[372567909,1752685859754,-577.21,0.00021369,2]
[372567910,1752685859763,-460.0,0.00021369,2]
[372567911,1752685859773,-460.0,0.00021369,2]
[372567912,1752685859782,-460.0,0.00021369,2]
[372567913,1752685859792,-460.0,0.00021369,2]
[372567914,1752685859801,-1400.36,0.00021369,2]
[372567915,1752685859810,-476.08,0.00021369,2]
[372567916,1752685859820,-460.0,0.00021369,2]
[372567917,1752685859828,-563.13,0.00021369,2]
[372567918,1752685859838,-671.66,0.00021369,2]
[372567919,1752685859847,-2382.71,0.00021369,2]
[372567920,1752685859858,-460.0,0.00021369,2]
[372567921,1752685859867,-731.92,0.00021369,2]
[372567922,1752685859878,-460.0,0.00021369,2]
[372567923,1752685859888,-3088.72,0.00021369,2]
[372567924,1752685859897,-460.0,0.00021369,2]
[372567925,1752685859906,-10000.0,0.00021386,2]
[372567926,1752685859916,-10000.0,0.00021446,2]
[372567927,1752685859925,-207.4,0.00021485,2]
[372567928,1752685859934,-1000.0,0.00021541,2]
[372567929,1752685859943,-5916.31313928,0.00021555,5]
[372567930,1752685859953,-500.0,0.00021603,2]
[372567931,1752685859962,-460.0,0.00021643,2]
[372567932,1752685859971,-460.0,0.00021643,2]
[372567933,1752685859980,-460.0,0.00021643,2]
[372567934,1752685859989,-460.0,0.00021643,2]
[372567935,1752685859998,-460.0,0.00021643,2]
[372567936,1752685860008,-460.0,0.00021643,2]
[372567937,1752685860017,-460.0,0.00021643,2]
[372567938,1752685860026,-460.0,0.00021643,2]
[372567939,1752685860134,-595.36,0.00021643,2]
[372567940,1752685860153,-593.36,0.00021643,2]
[372567941,1752685860163,-179.14,0.00021643,2]
[372567942,1752685860172,-460.0,0.00021643,2]
[372567943,1752685860182,-185.76245554,0.00021643,2]
[372567944,1752685860191,-460.0,0.00021643,2]
[372567945,1752685860200,-460.0,0.00021643,2]
[372567946,1752685860210,-460.0,0.00021643,2]
[372567947,1752685860219,-460.0,0.00021643,2]
[372567948,1752685860229,-579.17,0.00021643,2]
[372567949,1752685860239,-460.0,0.00021643,2]
[372567950,1752685860249,-460.0,0.00021643,2]
[372567951,1752685860259,-371.29404419,0.00021643,2]
[372567952,1752685860269,-460.0,0.00021643,2]
[372567953,1752685860278,-657.27,0.00021643,2]
[372567954,1752685860289,-460.0,0.00021643,2]
[372567955,1752685860300,-460.0,0.00021643,2]
[372567956,1752685860309,-172.90716097,0.00021643,2]
[372567957,1752685860319,-460.0,0.00021643,2]
[372567958,1752685860329,-460.0,0.00021643,2]
[372567959,1752685860338,-729.43,0.00021643,2]
[372567960,1752685860351,-460.0,0.00021643,2]
[372567961,1752685860366,-460.0,0.00021643,2]
[372567962,1752685860381,-1666.88,0.00021643,2]
[372567963,1752685860392,-1697.15,0.00021643,2]
[372567964,1752685860402,-460.0,0.00021643,2]
[372567965,1752685860414,-1357.78,0.00021643,2]
[372567966,1752685860425,-460.0,0.00021643,2]
[372567967,1752685860434,-586.34,0.00021643,2]
[372567968,1752685860445,-755.09,0.00021643,2]
[372567969,1752685860455,-460.0,0.00021643,2]
[372567970,1752685860465,-760.93,0.00021643,2]
[372567971,1752685860474,-460.0,0.00021643,2]
[372567972,1752685860483,-460.0,0.00021643,2]
[372567973,1752685860495,-2012.57,0.00021643,2]
[372567974,1752685860507,-587.6,0.00021643,2]
[372567975,1752685860522,-5099.27,0.00021643,2]
[372567976,1752685860531,-1833.17,0.00021643,2]
[372567977,1752685860542,-460.0,0.00021643,2]
[372567978,1752685860551,-460.0,0.00021643,2]
[372567979,1752685860561,-537.99,0.00021643,2]
[372567980,1752685860571,-593.0,0.00021643,2]
[372567981,1752685860581,-460.0,0.00021643,2]
[372567982,1752685860591,-460.0,0.00021643,2]
[372567983,1752685860601,-1535.14,0.00021643,2]
[372567984,1752685860614,-460.0,0.00021643,2]
[372567985,1752685860623,-1021.02,0.00021643,2]
[372567986,1752685860632,-460.0,0.00021643,2]
[372567987,1752685860642,-914.77,0.00021643,2]
[372567988,1752685860652,-460.0,0.00021643,2]
[372567989,1752685860663,-460.0,0.00021643,2]
[372567990,1752685860672,-5881.17,0.00021643,2]
[372567991,1752685860682,-460.0,0.00021643,2]
[372567992,1752685860692,-460.0,0.00021643,2]
[372567993,1752685860703,-460.0,0.00021643,2]
[372567994,1752685860712,-1200.41,0.00021643,2]
[372567995,1752685860722,-4675.14,0.00021643,2]
[372567996,1752685860732,-460.0,0.00021643,2]
[372567997,1752685860741,-460.0,0.00021643,2]
[372567998,1752685860752,-1850.24,0.00021643,2]
[372567999,1752685860763,-922.03,0.00021643,2]
[372568000,1752685860772,-460.0,0.00021643,2]
[372568001,1752685860782,-2753.5,0.00021643,2]
[372568002,1752685860792,-881.48,0.00021643,2]
[372568003,1752685860802,-694.7,0.00021643,2]
[372568004,1752685860813,-460.0,0.00021643,2]
[372568005,1752685860823,-530.9,0.00021643,2]
[372568006,1752685860833,-460.0,0.00021643,2]
[372568007,1752685860843,-460.0,0.00021643,2]
[372568008,1752685860852,-460.0,0.00021643,2]
[372568009,1752685860864,-613.81,0.00021643,2]
[372568010,1752685860873,-641.21,0.00021643,2]
[372568011,1752685860883,-577.21,0.00021643,2]
[372568012,1752685860892,-460.0,0.00021643,2]
[372568013,1752685860902,-460.0,0.00021643,2]
[372568014,1752685860911,-1400.36,0.00021643,2]
[372568015,1752685860921,-476.08,0.00021643,2]
[372568016,1752685860930,-563.13,0.00021643,2]
[372568017,1752685860939,-671.66,0.00021643,2]
[372568018,1752685860949,-2382.71,0.00021643,2]
[372568019,1752685860959,-731.92,0.00021643,2]
[372568020,1752685860969,-460.0,0.00021643,2]
[372568021,1752685860978,-3088.72,0.00021643,2]
[372568022,1752685860987,-1000.0,0.00021664,2]
[372568023,1752685860998,-1000.0,0.0002169,2]
[372568024,1752685861007,-560.0,0.00021692,2]
[372568025,1752685861016,-1500.0,0.00021754,2]
[372568026,1752685861026,-1000.0,0.00021754,2]
[372568027,1752685861035,-459.6,0.00021767,4]
[372568028,1752685861045,-160.0,0.00021792,3]
[372568029,1752685861054,-5916.31313928,0.00021797,6]
[372568030,1752685861064,-150.0,0.000219,2]
[372568031,1752685861073,-460.0,0.00021917,2]
[372568032,1752685861083,-460.0,0.00021917,2]
[372568033,1752685861092,-460.0,0.00021917,2]
[372568034,1752685861103,-460.0,0.00021917,2]
[372568035,1752685861114,-465.74,0.00021917,2]
[372568036,1752685861124,-460.0,0.00021917,2]
[372568037,1752685861133,-460.0,0.00021917,2]
[372568038,1752685861143,-460.0,0.00021917,2]
[372568039,1752685861153,-593.36,0.00021917,2]
[372568040,1752685861163,-460.0,0.00021917,2]
[372568041,1752685861173,-460.0,0.00021917,2]
[372568042,1752685861182,-460.0,0.00021917,2]
[372568043,1752685861191,-579.17,0.00021917,2]
[372568044,1752685861201,-460.0,0.00021917,2]
[372568045,1752685861211,-460.0,0.00021917,2]
[372568046,1752685861221,-460.0,0.00021917,2]
[372568047,1752685861230,-657.27,0.00021917,2]
[372568048,1752685861240,-460.0,0.00021917,2]
[372568049,1752685861250,-460.0,0.00021917,2]
[372568050,1752685861259,-460.0,0.00021917,2]
[372568051,1752685861269,-460.0,0.00021917,2]
[372568052,1752685861279,-729.43,0.00021917,2]
[372568053,1752685861289,-460.0,0.00021917,2]
[372568054,1752685861299,-460.0,0.00021917,2]
[372568055,1752685861310,-1666.88,0.00021917,2]
[372568056,1752685861321,-1697.15,0.00021917,2]
[372568057,1752685861330,-460.0,0.00021917,2]
[372568058,1752685861340,-1357.78,0.00021917,2]
[372568059,1752685861349,-460.0,0.00021917,2]
[372568060,1752685861373,-586.34,0.00021917,2]
[372568061,1752685861387,-755.09,0.00021917,2]
[372568062,1752685861396,-460.0,0.00021917,2]
[372568063,1752685861406,-760.93,0.00021917,2]
[372568064,1752685861416,-460.0,0.00021917,2]
[372568065,1752685861426,-460.0,0.00021917,2]
[372568066,1752685861435,-2012.57,0.00021917,2]
[372568067,1752685861445,-587.6,0.00021917,2]
[372568068,1752685861456,-5099.27,0.00021917,2]
[372568069,1752685861466,-1833.17,0.00021917,2]
[372568070,1752685861476,-460.0,0.00021917,2]
[372568071,1752685861485,-460.0,0.00021917,2]
[372568072,1752685861495,-537.99,0.00021917,2]
[372568073,1752685861504,-593.0,0.00021917,2]
[372568074,1752685861513,-460.0,0.00021917,2]
[372568075,1752685861522,-460.0,0.00021917,2]
[372568076,1752685861532,-460.0,0.00021917,2]
[372568077,1752685861541,-1021.02,0.00021917,2]
[372568078,1752685861551,-1535.14,0.00021917,2]
[372568079,1752685861562,-460.0,0.00021917,2]
[372568080,1752685861572,-914.77,0.00021917,2]
[372568081,1752685861582,-460.0,0.00021917,2]
[372568082,1752685861591,-460.0,0.00021917,2]
[372568083,1752685861601,-5881.17,0.00021917,2]
[372568084,1752685861613,-460.0,0.00021917,2]
[372568085,1752685861622,-460.0,0.00021917,2]
[372568086,1752685861632,-460.0,0.00021917,2]
[372568087,1752685861641,-1200.41,0.00021917,2]
[372568088,1752685861651,-4675.14,0.00021917,2]
[372568089,1752685861661,-460.0,0.00021917,2]
[372568090,1752685861670,-1850.24,0.00021917,2]
[372568091,1752685861679,-922.03,0.00021917,2]
[372568092,1752685861691,-460.0,0.00021917,2]
[372568093,1752685861701,-2753.5,0.00021917,2]
[372568094,1752685861710,-881.48,0.00021917,2]
[372568095,1752685861720,-694.7,0.00021917,2]
[372568096,1752685861729,-348.30608054,0.00021917,2]
[372568097,1752685861739,-530.9,0.00021917,2]
[372568098,1752685861750,-460.0,0.00021917,2]
[372568099,1752685861760,-460.0,0.00021917,2]
[372568100,1752685861769,-460.0,0.00021917,2]
[372568101,1752685861779,-613.81,0.00021917,2]
[372568102,1752685861790,-641.21,0.00021917,2]
[372568103,1752685861799,-577.21,0.00021917,2]
[372568104,1752685861809,-460.0,0.00021917,2]
[372568105,1752685861818,-460.0,0.00021917,2]
[372568106,1752685861827,-1400.36,0.00021917,2]
[372568107,1752685861837,-476.08,0.00021917,2]
[372568108,1752685861847,-563.13,0.00021917,2]
[372568109,1752685861856,-671.66,0.00021917,2]
[372568110,1752685861868,-2382.71,0.00021917,2]
[372568111,1752685861878,-731.92,0.00021917,2]
[372568112,1752685861888,-460.0,0.00021917,2]
[372568113,1752685861899,-3088.72,0.00021917,2]
[372568114,1752685861909,-150.07429765,0.00021918,2]
[372568115,1752685861919,-200.0,0.00021918,2]
[372568116,1752685861929,-158.02861431,0.0002192,4]
[372568117,1752685861940,-158.02861431,0.0002192,4]
[372568118,1752685861950,-158.02,0.0002192,4]
[372568119,1752685861960,-158.02861431,0.0002192,4]
[372568120,1752685861969,-158.02861431,0.0002192,4]
[372568121,1752685861979,-158.02861431,0.0002192,4]
[372568122,1752685861990,-158.02861431,0.0002192,4]
[372568123,1752685862000,-158.02861431,0.0002192,4]
[372568124,1752685862010,-158.02861431,0.0002192,4]
[372568125,1752685862019,-158.02,0.0002192,4]
[372568126,1752685862028,-150.04226239,0.0002192,4]
[372568127,1752685862038,-150.04226239,0.0002192,4]
[372568128,1752685862050,-150.04226239,0.0002192,4]
[372568129,1752685862059,-150.04226239,0.0002192,4]
[372568130,1752685862068,-150.04,0.0002192,4]
[372568131,1752685862078,-159.13573284,0.0002192,4]
[372568132,1752685862087,-159.13573284,0.0002192,4]
[372568133,1752685862097,-159.13573284,0.0002192,4]
[372568134,1752685862107,-159.13573284,0.0002192,4]
[372568135,1752685862117,-159.13573284,0.0002192,4]
[372568136,1752685862127,-159.13573284,0.0002192,4]
[372568137,1752685862136,-159.13573284,0.0002192,4]
[372568138,1752685862146,-159.13573284,0.0002192,4]
[372568139,1752685862156,-159.13573284,0.0002192,4]
[372568140,1752685862165,-159.13573284,0.0002192,4]
[372568141,1752685862174,-159.13,0.0002192,4]
[372568142,1752685862183,-253.9189207,0.00021973,2]
[372568143,1752685862193,-154.299843,0.00022,14]
[372568144,1752685862202,-168.0,0.00022,2]
[372568145,1752685862211,-4020.09,0.00022,7]
[372568146,1752685862222,-5099.04,0.00022,7]
[372568147,1752685862231,-45179.26,0.00022,2]
[372568148,1752685862240,-50726.35,0.00022,7]
[372568149,1752685862250,-237.0,0.00022,2]
[372568150,1752685862260,-5916.31313928,0.00022038,6]
[372568151,1752685862270,-500.0,0.00022052,2]
[372568152,1752685862280,-1352.80024,0.00022089,2]
[372568153,1752685862290,-150.0,0.00022092,2]
[372568154,1752685862300,-4000.0,0.00022092,4]
[372568155,1752685862312,-459.6,0.00022141,5]
[372568156,1752685862323,-154.299843,0.00022176,6]
[372568157,1752685862333,-300.0,0.00022187,2]
[372568158,1752685862342,-151.0,0.00022191,7]
[372568159,1752685862352,-460.0,0.00022191,2]
[372568160,1752685862365,-460.0,0.00022191,2]
[372568161,1752685862378,-460.0,0.00022191,2]
[372568162,1752685862388,-437.944462,0.00022191,7]
[372568163,1752685862397,-437.944462,0.00022191,7]
[372568164,1752685862407,-337.52,0.00022191,2]
[372568165,1752685862418,-460.0,0.00022191,2]
[372568166,1752685862427,-484.61082422,0.00022191,2]
[372568167,1752685862538,-460.0,0.00022191,2]
[372568168,1752685862549,-593.36,0.00022191,2]
[372568169,1752685862559,-565.5,0.00022191,2]
[372568170,1752685862568,-460.0,0.00022191,2]
[372568171,1752685862577,-460.0,0.00022191,2]
[372568172,1752685862587,-579.17,0.00022191,2]
[372568173,1752685862597,-460.0,0.00022191,2]
[372568174,1752685862607,-602.23,0.00022191,2]
[372568175,1752685862618,-460.0,0.00022191,2]
[372568176,1752685862627,-657.27,0.00022191,2]
[372568177,1752685862637,-460.0,0.00022191,2]
[372568178,1752685862647,-460.0,0.00022191,2]
[372568179,1752685862657,-729.43,0.00022191,2]
[372568180,1752685862668,-460.0,0.00022191,2]
[372568181,1752685862678,-460.0,0.00022191,2]
[372568182,1752685862689,-1666.88,0.00022191,2]
[372568183,1752685862699,-1697.15,0.00022191,2]
[372568184,1752685862709,-1357.78,0.00022191,2]
[372568185,1752685862720,-460.0,0.00022191,2]
[372568186,1752685862735,-586.34,0.00022191,2]
[372568187,1752685862745,-755.09,0.00022191,2]
[372568188,1752685862754,-460.0,0.00022191,2]
[372568189,1752685862764,-760.93,0.00022191,2]
[372568190,1752685862774,-460.0,0.00022191,2]
[372568191,1752685862786,-460.0,0.00022191,2]
[372568192,1752685862795,-2012.57,0.00022191,2]
[372568193,1752685862805,-587.6,0.00022191,2]
[372568194,1752685862815,-5099.27,0.00022191,2]
[372568195,1752685862825,-1833.17,0.00022191,2]
[372568196,1752685862835,-460.0,0.00022191,2]
[372568197,1752685862845,-460.0,0.00022191,2]
[372568198,1752685862854,-537.99,0.00022191,2]
[372568199,1752685862867,-593.0,0.00022191,2]
[372568200,1752685862877,-571.48,0.00022191,2]
[372568201,1752685862887,-460.0,0.00022191,2]
[372568202,1752685862898,-460.0,0.00022191,2]
[372568203,1752685862909,-1021.02,0.00022191,2]
[372568204,1752685862919,-460.0,0.00022191,2]
[372568205,1752685862928,-1535.14,0.00022191,2]
[372568206,1752685862938,-914.77,0.00022191,2]
[372568207,1752685862948,-460.0,0.00022191,2]
[372568208,1752685862957,-460.0,0.00022191,2]
[372568209,1752685862967,-5881.17,0.00022191,2]
[372568210,1752685862976,-460.0,0.00022191,2]
[372568211,1752685862986,-460.0,0.00022191,2]
[372568212,1752685862996,-1200.41,0.00022191,2]
[372568213,1752685863006,-4675.14,0.00022191,2]
[372568214,1752685863016,-460.0,0.00022191,2]
[372568215,1752685863026,-1850.24,0.00022191,2]
[372568216,1752685863036,-922.03,0.00022191,2]
[372568217,1752685863045,-460.0,0.00022191,2]
[372568218,1752685863055,-2753.5,0.00022191,2]
[372568219,1752685863065,-881.48,0.00022191,2]
[372568220,1752685863075,-694.7,0.00022191,2]
[372568221,1752685863085,-530.9,0.00022191,2]
[372568222,1752685863095,-460.0,0.00022191,2]
[372568223,1752685863105,-460.0,0.00022191,2]
[372568224,1752685863117,-460.0,0.00022191,2]
[372568225,1752685863128,-613.81,0.00022191,2]
[372568226,1752685863138,-641.21,0.00022191,2]
[372568227,1752685863148,-577.21,0.00022191,2]
[372568228,1752685863158,-460.0,0.00022191,2]
[372568229,1752685863168,-460.0,0.00022191,2]
[372568230,1752685863178,-1400.36,0.00022191,2]
[372568231,1752685863188,-476.08,0.00022191,2]
[372568232,1752685863198,-563.13,0.00022191,2]
[372568233,1752685863208,-671.66,0.00022191,2]
[372568234,1752685863219,-2382.71,0.00022191,2]
[372568235,1752685863229,-731.92,0.00022191,2]
[372568236,1752685863239,-460.0,0.00022191,2]
[372568237,1752685863250,-3088.72,0.00022191,2]
[372568238,1752685863259,-237.0,0.00022192,7]
[372568239,1752685863269,-660.0,0.0002224,2]
[372568240,1752685863279,-5916.31313928,0.00022279,6]
[372568241,1752685863289,-2000.0,0.00022302,2]
[372568242,1752685863299,-460.0,0.00022465,2]
[372568243,1752685863310,-460.0,0.00022465,2]
[372568244,1752685863320,-460.0,0.00022465,2]
[372568245,1752685863344,-460.0,0.00022465,2]
[372568246,1752685863354,-593.36,0.00022465,2]
[372568247,1752685863366,-460.0,0.00022465,2]
[372568248,1752685863379,-460.0,0.00022465,2]
[372568249,1752685863390,-579.17,0.00022465,2]
[372568250,1752685863399,-362.12,0.00022465,2]
[372568251,1752685863411,-657.27,0.00022465,2]
[372568252,1752685863421,-460.0,0.00022465,2]
[372568253,1752685863430,-154.299843,0.00022465,2]
[372568254,1752685863440,-460.0,0.00022465,2]
[372568255,1752685863451,-729.43,0.00022465,2]
[372568256,1752685863461,-460.0,0.00022465,2]
[372568257,1752685863471,-460.0,0.00022465,2]
[372568258,1752685863482,-1666.88,0.00022465,2]
[372568259,1752685863491,-1697.15,0.00022465,2]
[372568260,1752685863502,-1357.78,0.00022465,2]
[372568261,1752685863512,-460.0,0.00022465,2]
[372568262,1752685863521,-586.34,0.00022465,2]
[372568263,1752685863532,-755.09,0.00022465,2]
[372568264,1752685863542,-460.0,0.00022465,2]
[372568265,1752685863552,-760.93,0.00022465,2]
[372568266,1752685863562,-460.0,0.00022465,2]
[372568267,1752685863572,-460.0,0.00022465,2]
[372568268,1752685863581,-2012.57,0.00022465,2]
[372568269,1752685863591,-587.6,0.00022465,2]
[372568270,1752685863601,-5099.27,0.00022465,2]
[372568271,1752685863611,-1833.17,0.00022465,2]
[372568272,1752685863621,-460.0,0.00022465,2]
[372568273,1752685863631,-460.0,0.00022465,2]
[372568274,1752685863642,-537.99,0.00022465,2]
[372568275,1752685863652,-593.0,0.00022465,2]
[372568276,1752685863663,-460.0,0.00022465,2]
[372568277,1752685863673,-460.0,0.00022465,2]
[372568278,1752685863683,-1021.02,0.00022465,2]
[372568279,1752685863692,-460.0,0.00022465,2]
[372568280,1752685863702,-1535.14,0.00022465,2]
[372568281,1752685863712,-914.77,0.00022465,2]
[372568282,1752685863721,-460.0,0.00022465,2]
[372568283,1752685863731,-460.0,0.00022465,2]
[372568284,1752685863740,-5881.17,0.00022465,2]
[372568285,1752685863751,-460.0,0.00022465,2]
[372568286,1752685863760,-460.0,0.00022465,2]
[372568287,1752685863769,-1200.41,0.00022465,2]
[372568288,1752685863779,-4675.14,0.00022465,2]
[372568289,1752685863788,-460.0,0.00022465,2]
[372568290,1752685863798,-1850.24,0.00022465,2]
[372568291,1752685863807,-922.03,0.00022465,2]
[372568292,1752685863817,-473.52,0.00022465,2]
[372568293,1752685863827,-2753.5,0.00022465,2]
[372568294,1752685863836,-881.48,0.00022465,2]
[372568295,1752685863845,-694.7,0.00022465,2]